[Event "Late-Titled-Tuesday-Blitz-May-14-2024"]
[Site "Chess.com"]
[Date "2024.05.14"]
[Round "1"]
[White "Kira170"]
[Black "Godzillator"]
[Result "1-0"]
[WhiteElo "2756"]
[BlackElo "2423"]
[TimeControl "180+1"]
[EndTime "14:08:44 PDT"]
[Termination "Kira170 won by resignation"]

1. d4 {[%clk 0:02:57.2]} 1... d5 {[%clk 0:02:53.3]} 2. c4 {[%clk 0:02:55.2]}
2... c6 {[%clk 0:02:53.7]} 3. Nf3 {[%clk 0:02:55.4]} 3... Nf6 {[%clk 0:02:54]}
4. Nc3 {[%clk 0:02:55.5]} 4... a6 {[%clk 0:02:54.2]} 5. Qc2 {[%clk 0:02:53.9]}
5... b5 {[%clk 0:02:49.3]} 6. cxd5 {[%clk 0:02:37.4]} 6... cxd5 {[%clk
0:02:49.3]} 7. Bf4 {[%clk 0:02:37.4]} 7... e6 {[%clk 0:02:47.9]} 8. e3 {[%clk
0:02:37.1]} 8... Bd6 {[%clk 0:02:47.3]} 9. Bd3 {[%clk 0:02:36.6]} 9... Bxf4
{[%clk 0:02:44.4]} 10. exf4 {[%clk 0:02:37.5]} 10... O-O {[%clk 0:02:44.1]} 11.
O-O {[%clk 0:02:37.8]} 11... g6 {[%clk 0:02:37.3]} 12. Ne5 {[%clk 0:02:36.8]}
12... Bb7 {[%clk 0:02:31.3]} 13. Rac1 {[%clk 0:02:36.4]} 13... Nbd7 {[%clk
0:02:30.6]} 14. Qe2 {[%clk 0:02:16.5]} 14... Qb6 {[%clk 0:02:27.4]} 15. Qe3
{[%clk 0:01:59.2]} 15... Rac8 {[%clk 0:02:23.2]} 16. h3 {[%clk 0:01:59.6]} 16...
Rc7 {[%clk 0:02:11.7]} 17. Rcd1 {[%clk 0:01:59.9]} 17... Rfc8 {[%clk 0:02:10.6]}
18. Rfe1 {[%clk 0:02:00.5]} 18... b4 {[%clk 0:02:03.2]} 19. Na4 {[%clk
0:01:54.4]} 19... Qa5 {[%clk 0:02:03.3]} 20. b3 {[%clk 0:01:52.3]} 20... Bc6
{[%clk 0:02:03.2]} 21. Nxf7 {[%clk 0:00:47.3]} 21... Kxf7 {[%clk 0:02:02.5]} 22.
Qxe6+ {[%clk 0:00:47.9]} 22... Kg7 {[%clk 0:02:02.1]} 23. Qe7+ {[%clk
0:00:48.6]} 23... Kg8 {[%clk 0:02:01.6]} 24. f5 {[%clk 0:00:49.5]} 24... Re8
{[%clk 0:01:55.4]} 25. Qd6 {[%clk 0:00:49]} 25... Rxe1+ {[%clk 0:01:46.2]} 26.
Rxe1 {[%clk 0:00:49.9]} 26... Bxa4 {[%clk 0:01:43]} 27. Qe6+ {[%clk 0:00:47.7]}
27... Kg7 {[%clk 0:01:40.3]} 28. Qe7+ {[%clk 0:00:47.1]} 28... Kg8 {[%clk
0:01:40.2]} 29. fxg6 {[%clk 0:00:46.4]} 29... Nf8 {[%clk 0:01:30.1]} 30. Qxf6
{[%clk 0:00:42.4]} 30... hxg6 {[%clk 0:01:11.4]} 31. bxa4 {[%clk 0:00:40.7]}
31... Rf7 {[%clk 0:01:08.3]} 32. Qc6 {[%clk 0:00:39.2]} 32... b3 {[%clk
0:01:03.8]} 33. Rf1 {[%clk 0:00:38.5]} 33... bxa2 {[%clk 0:01:02.6]} 34. Qc2
{[%clk 0:00:32.6]} 34... Qb4 {[%clk 0:00:54.7]} 35. Qxa2 {[%clk 0:00:32.5]}
35... Qxd4 {[%clk 0:00:54.7]} 36. Bxa6 {[%clk 0:00:27.9]} 36... Ne6 {[%clk
0:00:52]} 37. Bc8 {[%clk 0:00:24.2]} 37... Nf4 {[%clk 0:00:51.7]} 38. Bg4 {[%clk
0:00:03.9]} 38... Kg7 {[%clk 0:00:51.1]} 39. a5 {[%clk 0:00:03.7]} 39... Nd3
{[%clk 0:00:48.1]} 40. a6 {[%clk 0:00:02.8]} 40... Nb4 {[%clk 0:00:41.1]} 41.
Qa1 {[%clk 0:00:02.1]} 41... Qxa1 {[%clk 0:00:38.3]} 42. Rxa1 {[%clk 0:00:03]}
42... Ra7 {[%clk 0:00:38.1]} 43. Bc8 {[%clk 0:00:03.7]} 43... d4 {[%clk
0:00:31.6]} 44. Rb1 {[%clk 0:00:04.1]} 44... Nxa6 {[%clk 0:00:26.1]} 45. Ra1
{[%clk 0:00:04.2]} 45... d3 {[%clk 0:00:26.3]} 46. Bxa6 {[%clk 0:00:04.5]} 46...
d2 {[%clk 0:00:25.7]} 47. Rd1 {[%clk 0:00:05.2]} 47... Rxa6 {[%clk 0:00:25.1]}
48. Rxd2 {[%clk 0:00:05.8]} 48... Kf6 {[%clk 0:00:25]} 49. g3 {[%clk 0:00:06.4]}
49... g5 {[%clk 0:00:22.2]} 50. Kg2 {[%clk 0:00:06.9]} 50... Ra3 {[%clk
0:00:21.8]} 51. Re2 {[%clk 0:00:07]} 51... Kf5 {[%clk 0:00:21.4]} 52. Re3 {[%clk
0:00:07.9]} 52... Ra2 {[%clk 0:00:20.9]} 53. Rf3+ {[%clk 0:00:08.6]} 53... Kg6
{[%clk 0:00:20.5]} 54. Re3 {[%clk 0:00:09.5]} 54... Kf5 {[%clk 0:00:20.7]} 55.
Re8 {[%clk 0:00:09.7]} 55... Ra3 {[%clk 0:00:20.2]} 56. Rf8+ {[%clk 0:00:09.9]}
56... Kg6 {[%clk 0:00:20.5]} 57. Rb8 {[%clk 0:00:10.5]} 57... Kf5 {[%clk
0:00:20.5]} 58. Rb4 {[%clk 0:00:11]} 58... Rc3 {[%clk 0:00:19.8]} 59. Rd4 {[%clk
0:00:11.1]} 59... Rb3 {[%clk 0:00:19.9]} 60. Ra4 {[%clk 0:00:11.4]} 60... Rc3
{[%clk 0:00:19.9]} 61. h4 {[%clk 0:00:10.9]} 61... gxh4 {[%clk 0:00:16.9]} 62.
Rf4+ {[%clk 0:00:10.7]} 62... Kg5 {[%clk 0:00:16.7]} 63. Rxh4 {[%clk 0:00:11.6]}
63... Rb3 {[%clk 0:00:16.3]} 64. Ra4 {[%clk 0:00:11.7]} 64... Rc3 {[%clk
0:00:16.4]} 65. Ra5+ {[%clk 0:00:11.8]} 65... Kg6 {[%clk 0:00:15.4]} 66. f4
{[%clk 0:00:11.8]} 66... Kf6 {[%clk 0:00:14]} 67. Kh3 {[%clk 0:00:12.3]} 67...
Kg6 {[%clk 0:00:14.4]} 68. Kg4 {[%clk 0:00:12.8]} 68... Kf6 {[%clk 0:00:14.9]}
69. Ra6+ {[%clk 0:00:12.7]} 69... Kg7 {[%clk 0:00:14.7]} 70. Kh4 {[%clk
0:00:12.9]} 70... Rc1 {[%clk 0:00:14.6]} 71. g4 {[%clk 0:00:13.1]} 71... Rc5
{[%clk 0:00:14.6]} 72. f5 {[%clk 0:00:13.3]} 72... Kf7 {[%clk 0:00:14.2]} 73.
Kg5 {[%clk 0:00:13.6]} 73... Kg7 {[%clk 0:00:14.4]} 74. Ra7+ {[%clk 0:00:13.8]}
74... Kf8 {[%clk 0:00:14.6]} 75. Kh5 {[%clk 0:00:13.6]} 75... Ke8 {[%clk
0:00:14.4]} 76. Kg6 {[%clk 0:00:13.8]} 76... Rc6+ {[%clk 0:00:13.9]} 77. f6
{[%clk 0:00:14]} 77... Kd8 {[%clk 0:00:14]} 78. g5 {[%clk 0:00:14.4]} 78... Ke8
{[%clk 0:00:14.2]} 79. Kg7 {[%clk 0:00:14.4]} 1-0

[Event "Late-Titled-Tuesday-Blitz-May-14-2024"]
[Site "Chess.com"]
[Date "2024.05.14"]
[Round "1"]
[White "Rodalquilar"]
[Black "Rakitic2010"]
[Result "1-0"]
[WhiteElo "2865"]
[BlackElo "2488"]
[TimeControl "180+1"]
[EndTime "14:08:47 PDT"]
[Termination "Rodalquilar won by resignation"]

1. d4 {[%clk 0:03:00.9]} 1... Nf6 {[%clk 0:02:59.3]} 2. Nf3 {[%clk 0:03:01.2]}
2... c5 {[%clk 0:02:59.3]} 3. c3 {[%clk 0:03:01.1]} 3... cxd4 {[%clk 0:02:59]}
4. cxd4 {[%clk 0:03:01.1]} 4... e6 {[%clk 0:02:54.1]} 5. Nc3 {[%clk 0:03:00.9]}
5... b6 {[%clk 0:02:54.1]} 6. e4 {[%clk 0:03:00.7]} 6... d6 {[%clk 0:02:54.1]}
7. Bd3 {[%clk 0:03:00.5]} 7... Bb7 {[%clk 0:02:54.2]} 8. O-O {[%clk 0:03:00.9]}
8... Be7 {[%clk 0:02:54.7]} 9. Qe2 {[%clk 0:02:57.8]} 9... O-O {[%clk
0:02:53.8]} 10. Bf4 {[%clk 0:02:54.2]} 10... Nc6 {[%clk 0:02:50.2]} 11. a3
{[%clk 0:02:38.2]} 11... Rc8 {[%clk 0:02:42.6]} 12. Rad1 {[%clk 0:02:37.4]}
12... Qd7 {[%clk 0:02:36.1]} 13. e5 {[%clk 0:02:21.7]} 13... Nh5 {[%clk
0:02:23.4]} 14. Bc1 {[%clk 0:02:13.7]} 14... g6 {[%clk 0:02:10.3]} 15. Bh6
{[%clk 0:01:46.2]} 15... Rfd8 {[%clk 0:02:08.3]} 16. Bb1 {[%clk 0:01:02.3]}
16... Qe8 {[%clk 0:01:45.1]} 17. Ne4 {[%clk 0:01:00.4]} 17... Na5 {[%clk
0:01:35]} 18. g4 {[%clk 0:00:56.2]} 18... Bxe4 {[%clk 0:01:18.5]} 19. Bxe4
{[%clk 0:00:56]} 19... Ng7 {[%clk 0:01:18.3]} 20. h4 {[%clk 0:00:55.6]} 20...
Nb3 {[%clk 0:01:06.9]} 21. Kg2 {[%clk 0:00:50.1]} 21... dxe5 {[%clk 0:01:03.9]}
22. dxe5 {[%clk 0:00:50.3]} 22... Nc5 {[%clk 0:01:04.1]} 23. Bb1 {[%clk
0:00:49.8]} 23... Rxd1 {[%clk 0:01:03.2]} 24. Rxd1 {[%clk 0:00:49.7]} 24... Rd8
{[%clk 0:01:03.8]} 25. Rc1 {[%clk 0:00:46.2]} 25... Qa4 {[%clk 0:00:58.5]} 26.
Rc4 {[%clk 0:00:28.6]} 26... Qb5 {[%clk 0:00:51.8]} 27. b4 {[%clk 0:00:22.8]}
27... Nb3 {[%clk 0:00:40.9]} 28. Qc2 {[%clk 0:00:07.4]} 28... Na1 {[%clk
0:00:28.5]} 29. Qc3 {[%clk 0:00:07.8]} 29... Qd5 {[%clk 0:00:23.1]} 30. Be4
{[%clk 0:00:07.3]} 30... Qd1 {[%clk 0:00:22.3]} 31. Rc7 {[%clk 0:00:05.6]} 31...
Bf8 {[%clk 0:00:20.5]} 32. Qc1 {[%clk 0:00:03.6]} 32... Qa4 {[%clk 0:00:17.2]}
33. Qxa1 {[%clk 0:00:02.9]} 33... Ne8 {[%clk 0:00:15.2]} 34. Rc1 {[%clk
0:00:02.5]} 34... Bxh6 {[%clk 0:00:15.1]} 35. g5 {[%clk 0:00:02.7]} 35... Bg7
{[%clk 0:00:15.4]} 36. Qc3 {[%clk 0:00:03.4]} 36... Qd7 {[%clk 0:00:14.8]} 37.
Bc6 {[%clk 0:00:03.7]} 37... Qc7 {[%clk 0:00:14.2]} 38. Bxe8 {[%clk 0:00:04.1]}
38... Qxc3 {[%clk 0:00:14.5]} 39. Bxf7+ {[%clk 0:00:04.7]} 39... Kxf7 {[%clk
0:00:14.3]} 40. Rxc3 {[%clk 0:00:05.6]} 40... Rd7 {[%clk 0:00:14.6]} 41. Rc6
{[%clk 0:00:05.6]} 41... Ke7 {[%clk 0:00:14.5]} 42. Kg3 {[%clk 0:00:06]} 42...
Rd8 {[%clk 0:00:11.9]} 43. Rc7+ {[%clk 0:00:06]} 43... Rd7 {[%clk 0:00:12.5]}
44. Rc6 {[%clk 0:00:06.5]} 44... Rb7 {[%clk 0:00:11]} 45. Kf4 {[%clk 0:00:06.8]}
45... a5 {[%clk 0:00:10.3]} 46. b5 {[%clk 0:00:07]} 46... Rd7 {[%clk 0:00:10.2]}
47. Ke4 {[%clk 0:00:07.3]} 47... Rd1 {[%clk 0:00:08.2]} 48. Nd4 {[%clk
0:00:07.6]} 48... Re1+ {[%clk 0:00:07.4]} 49. Kd3 {[%clk 0:00:08.2]} 49... Rxe5
{[%clk 0:00:07.7]} 50. Rc7+ {[%clk 0:00:07.9]} 50... Kf8 {[%clk 0:00:07.6]} 51.
Rc8+ {[%clk 0:00:07.8]} 51... Ke7 {[%clk 0:00:07.4]} 52. Nc6+ {[%clk 0:00:06.9]}
52... Kd7 {[%clk 0:00:07.7]} 53. Rd8+ {[%clk 0:00:06]} 53... Kc7 {[%clk
0:00:07.5]} 54. Rg8 {[%clk 0:00:06.7]} 54... Rd5+ {[%clk 0:00:07.2]} 55. Ke4
{[%clk 0:00:07.3]} 55... Bc3 {[%clk 0:00:06.6]} 56. Re8 {[%clk 0:00:05.8]} 56...
Kd6 {[%clk 0:00:06]} 57. a4 {[%clk 0:00:05.7]} 57... Kc5 {[%clk 0:00:06.2]} 58.
Rxe6 {[%clk 0:00:05]} 58... Rf5 {[%clk 0:00:05.8]} 59. f4 {[%clk 0:00:04.8]}
59... Bd2 {[%clk 0:00:05.5]} 60. Re5+ {[%clk 0:00:04.2]} 60... Rxe5+ {[%clk
0:00:00.7]} 61. fxe5 {[%clk 0:00:05.1]} 61... Kc4 {[%clk 0:00:00.7]} 62. e6
{[%clk 0:00:05.7]} 62... Bb4 {[%clk 0:00:01.1]} 63. e7 {[%clk 0:00:06.2]} 63...
Bxe7 {[%clk 0:00:02]} 64. Nxe7 {[%clk 0:00:07.1]} 64... Kb3 {[%clk 0:00:02.9]}
65. Kd5 {[%clk 0:00:07.5]} 65... Kxa4 {[%clk 0:00:03.8]} 66. Kc6 {[%clk
0:00:08.4]} 66... Kb4 {[%clk 0:00:03.9]} 67. Kxb6 {[%clk 0:00:08.6]} 67... a4
{[%clk 0:00:04.8]} 68. Nc6+ {[%clk 0:00:09.2]} 68... Kc3 {[%clk 0:00:04.6]} 69.
Kc5 {[%clk 0:00:09.3]} 69... a3 {[%clk 0:00:05]} 70. Nb4 {[%clk 0:00:09.9]}
70... Kb3 {[%clk 0:00:03]} 71. b6 {[%clk 0:00:10.2]} 71... a2 {[%clk 0:00:03.6]}
72. Nxa2 {[%clk 0:00:10.7]} 72... Kb2 {[%clk 0:00:02.9]} 73. b7 {[%clk
0:00:10.9]} 73... h5 {[%clk 0:00:03.8]} 74. b8=Q+ {[%clk 0:00:10.9]} 74... Ka1
{[%clk 0:00:04.7]} 75. Nb4 {[%clk 0:00:10.9]} 1-0

[Event "Late-Titled-Tuesday-Blitz-May-14-2024"]
[Site "Chess.com"]
[Date "2024.05.14"]
[Round "1"]
[White "Revan_2002"]
[Black "WPWPWP-2015"]
[Result "1-0"]
[WhiteElo "2752"]
[BlackElo "2420"]
[TimeControl "180+1"]
[EndTime "14:08:52 PDT"]
[Termination "Revan_2002 won by resignation"]

1. Nf3 {[%clk 0:02:59.1]} 1... Nf6 {[%clk 0:02:59.4]} 2. c4 {[%clk 0:02:58.4]}
2... e6 {[%clk 0:02:58.8]} 3. g3 {[%clk 0:02:57.6]} 3... d5 {[%clk 0:02:57.5]}
4. Bg2 {[%clk 0:02:58.1]} 4... Be7 {[%clk 0:02:57.2]} 5. O-O {[%clk 0:02:58.1]}
5... O-O {[%clk 0:02:57.3]} 6. b3 {[%clk 0:02:58.7]} 6... Nbd7 {[%clk
0:02:56.5]} 7. Bb2 {[%clk 0:02:59.2]} 7... a5 {[%clk 0:02:56.7]} 8. Nc3 {[%clk
0:02:53.9]} 8... c6 {[%clk 0:02:53.8]} 9. e3 {[%clk 0:02:53.8]} 9... b6 {[%clk
0:02:52]} 10. Qe2 {[%clk 0:02:53.8]} 10... Ba6 {[%clk 0:02:50.9]} 11. Rfd1
{[%clk 0:02:53]} 11... Qc7 {[%clk 0:02:49.6]} 12. Rac1 {[%clk 0:02:52.3]} 12...
Rac8 {[%clk 0:02:25.8]} 13. d3 {[%clk 0:02:49.4]} 13... Qa7 {[%clk 0:02:24.2]}
14. e4 {[%clk 0:02:33.7]} 14... dxc4 {[%clk 0:02:14.3]} 15. bxc4 {[%clk
0:02:31.9]} 15... e5 {[%clk 0:02:08.2]} 16. Nh4 {[%clk 0:02:30.7]} 16... Bd6
{[%clk 0:02:04.3]} 17. Nf5 {[%clk 0:02:29.9]} 17... Qb8 {[%clk 0:01:52.8]} 18.
Qe3 {[%clk 0:02:19.2]} 18... h6 {[%clk 0:01:44.6]} 19. h3 {[%clk 0:02:16.6]}
19... Bc5 {[%clk 0:01:41.4]} 20. Qf3 {[%clk 0:02:16.7]} 20... Rfe8 {[%clk
0:01:40.4]} 21. Rb1 {[%clk 0:02:08.1]} 21... Qc7 {[%clk 0:01:39]} 22. Bc1 {[%clk
0:02:07.4]} 22... Bb4 {[%clk 0:01:35.2]} 23. Ne2 {[%clk 0:02:00.4]} 23... Bf8
{[%clk 0:01:26.2]} 24. g4 {[%clk 0:01:55.2]} 24... Nh7 {[%clk 0:01:21.4]} 25. h4
{[%clk 0:01:54.5]} 25... Nc5 {[%clk 0:01:18.2]} 26. Be3 {[%clk 0:01:46.5]} 26...
Rcd8 {[%clk 0:01:17.1]} 27. Neg3 {[%clk 0:01:40.1]} 27... Bc8 {[%clk 0:01:08.5]}
28. g5 {[%clk 0:01:25.7]} 28... hxg5 {[%clk 0:01:05.1]} 29. hxg5 {[%clk
0:01:26.6]} 29... Rxd3 {[%clk 0:00:54.7]} 30. Rxd3 {[%clk 0:01:23.7]} 30... Nxd3
{[%clk 0:00:55.6]} 31. Bxb6 {[%clk 0:01:23.8]} 31... Qd7 {[%clk 0:00:55.7]} 32.
Rd1 {[%clk 0:01:22.5]} 32... Qb7 {[%clk 0:00:55.6]} 33. Be3 {[%clk 0:01:09.1]}
33... Nc5 {[%clk 0:00:50]} 34. Nd6 {[%clk 0:01:06.5]} 34... Bxd6 {[%clk
0:00:48.8]} 35. Rxd6 {[%clk 0:01:07.4]} 35... Ne6 {[%clk 0:00:48]} 36. Nf5
{[%clk 0:00:51]} 36... Nexg5 {[%clk 0:00:32]} 37. Qg3 {[%clk 0:00:49.1]} 37...
f6 {[%clk 0:00:32.4]} 38. Rd1 {[%clk 0:00:41.6]} 38... Qf7 {[%clk 0:00:28.6]}
39. Nd6 {[%clk 0:00:35.6]} 39... Qh5 {[%clk 0:00:28]} 40. Rb1 {[%clk 0:00:34.8]}
40... Rf8 {[%clk 0:00:26.8]} 41. c5 {[%clk 0:00:24.9]} 41... Be6 {[%clk
0:00:26.2]} 42. a4 {[%clk 0:00:25.1]} 42... Qg4 {[%clk 0:00:18.3]} 43. Qxg4
{[%clk 0:00:22.3]} 43... Bxg4 {[%clk 0:00:19.2]} 44. Kh2 {[%clk 0:00:15.6]}
44... Nf7 {[%clk 0:00:13.8]} 45. Nb7 {[%clk 0:00:11.3]} 45... Ra8 {[%clk
0:00:12.3]} 46. Rb6 {[%clk 0:00:11.9]} 46... Bd1 {[%clk 0:00:11.3]} 47. Rxc6
{[%clk 0:00:08.7]} 47... Bxa4 {[%clk 0:00:11.2]} 48. Rb6 {[%clk 0:00:03.9]}
48... Rb8 {[%clk 0:00:10.9]} 49. Nxa5 {[%clk 0:00:03.3]} 49... Rc8 {[%clk
0:00:10.9]} 50. c6 {[%clk 0:00:03.1]} 50... Nd8 {[%clk 0:00:10.8]} 51. Bh3
{[%clk 0:00:03.2]} 51... Rxc6 {[%clk 0:00:09.5]} 52. Nxc6 {[%clk 0:00:02.7]}
52... Nxc6 {[%clk 0:00:09.9]} 53. Bd7 {[%clk 0:00:02.9]} 53... Ne7 {[%clk
0:00:03.8]} 54. Bxa4 {[%clk 0:00:03.3]} 54... Kf7 {[%clk 0:00:04.4]} 55. Rb7
{[%clk 0:00:03.5]} 55... Ke6 {[%clk 0:00:04]} 56. Bb3+ {[%clk 0:00:04.1]} 56...
Kd6 {[%clk 0:00:04.5]} 57. Rb6+ {[%clk 0:00:04.4]} 57... Kc7 {[%clk 0:00:04.5]}
58. Bd5 {[%clk 0:00:04.4]} 58... Nc8 {[%clk 0:00:04.2]} 59. Rb7+ {[%clk
0:00:03.7]} 59... Kd6 {[%clk 0:00:04.6]} 60. Rxg7 {[%clk 0:00:04.5]} 60... Ng5
{[%clk 0:00:04.7]} 61. Bxg5 {[%clk 0:00:04.2]} 61... fxg5 {[%clk 0:00:05.2]} 62.
Rg6+ {[%clk 0:00:05.1]} 62... Kc5 {[%clk 0:00:05.2]} 63. Rxg5 {[%clk 0:00:06]}
63... Kd4 {[%clk 0:00:05.8]} 64. Rg6 {[%clk 0:00:04.9]} 64... Ne7 {[%clk
0:00:05.9]} 65. Re6 {[%clk 0:00:04.4]} 65... Nc8 {[%clk 0:00:06.1]} 66. Kg3
{[%clk 0:00:03.6]} 66... Kd3 {[%clk 0:00:05.6]} 67. f4 {[%clk 0:00:03.8]} 67...
exf4+ {[%clk 0:00:05.3]} 68. Kxf4 {[%clk 0:00:04.7]} 68... Kd4 {[%clk
0:00:05.9]} 69. Rc6 {[%clk 0:00:04.3]} 69... Ne7 {[%clk 0:00:06]} 70. Rc4+
{[%clk 0:00:04.7]} 70... Kd3 {[%clk 0:00:06.5]} 71. Kg5 {[%clk 0:00:04.2]} 71...
Nxd5 {[%clk 0:00:04.9]} 72. exd5 {[%clk 0:00:05.1]} 72... Kxc4 {[%clk
0:00:05.4]} 73. d6 {[%clk 0:00:05.8]} 73... Kc5 {[%clk 0:00:06.1]} 74. d7 {[%clk
0:00:06.7]} 74... Kc6 {[%clk 0:00:07]} 75. d8=Q {[%clk 0:00:07.3]} 75... Kb7
{[%clk 0:00:07.9]} 76. Qd6 {[%clk 0:00:07.5]} 76... Ka8 {[%clk 0:00:08]} 77. Qe7
{[%clk 0:00:07.8]} 1-0

[Event "Late-Titled-Tuesday-Blitz-May-14-2024"]
[Site "Chess.com"]
[Date "2024.05.14"]
[Round "1"]
[White "yobdc"]
[Black "vladislavkovalev"]
[Result "1/2-1/2"]
[WhiteElo "2484"]
[BlackElo "2844"]
[TimeControl "180+1"]
[EndTime "14:08:54 PDT"]
[Termination "Game drawn by repetition"]

1. e4 {[%clk 0:02:59.4]} 1... e5 {[%clk 0:03:00.2]} 2. Nf3 {[%clk 0:02:58.8]}
2... Nc6 {[%clk 0:03:00.8]} 3. Bc4 {[%clk 0:02:59.3]} 3... Nf6 {[%clk
0:03:00.9]} 4. d4 {[%clk 0:02:55.5]} 4... exd4 {[%clk 0:03:00.3]} 5. e5 {[%clk
0:02:53.1]} 5... d5 {[%clk 0:03:00.6]} 6. Bb5 {[%clk 0:02:53.1]} 6... Nd7 {[%clk
0:03:01]} 7. O-O {[%clk 0:02:46.4]} 7... Be7 {[%clk 0:03:00.9]} 8. c3 {[%clk
0:02:42.6]} 8... a6 {[%clk 0:02:50.8]} 9. Bxc6 {[%clk 0:02:40]} 9... bxc6 {[%clk
0:02:51.7]} 10. cxd4 {[%clk 0:02:38.1]} 10... O-O {[%clk 0:02:51.6]} 11. Nc3
{[%clk 0:02:37]} 11... f6 {[%clk 0:02:49.2]} 12. h3 {[%clk 0:02:26.2]} 12...
fxe5 {[%clk 0:02:48.8]} 13. dxe5 {[%clk 0:02:25.6]} 13... Nc5 {[%clk 0:02:49.1]}
14. Nd4 {[%clk 0:02:19.9]} 14... Bd7 {[%clk 0:02:47.9]} 15. Be3 {[%clk
0:02:06.6]} 15... Ne6 {[%clk 0:02:48]} 16. Na4 {[%clk 0:01:58.1]} 16... Nxd4
{[%clk 0:02:34.6]} 17. Bxd4 {[%clk 0:01:45.4]} 17... Qe8 {[%clk 0:02:25]} 18.
Kh2 {[%clk 0:01:35.4]} 18... Rf4 {[%clk 0:02:19.3]} 19. g3 {[%clk 0:01:28.5]}
19... Rf5 {[%clk 0:01:32.9]} 20. f3 {[%clk 0:00:52.4]} 20... Qg6 {[%clk
0:01:30.1]} 21. g4 {[%clk 0:00:50]} 21... Rf4 {[%clk 0:01:26.3]} 22. Be3 {[%clk
0:00:46.4]} 22... Raf8 {[%clk 0:01:19]} 23. Nc5 {[%clk 0:00:38.5]} 23... Bc8
{[%clk 0:01:07.2]} 24. Nd3 {[%clk 0:00:36.1]} 24... R4f7 {[%clk 0:00:57.8]} 25.
f4 {[%clk 0:00:36.2]} 25... Qe4 {[%clk 0:00:56.3]} 26. Qd2 {[%clk 0:00:33.6]}
26... h5 {[%clk 0:00:47.7]} 27. Nc5 {[%clk 0:00:25.1]} 27... Qh7 {[%clk
0:00:26.9]} 28. g5 {[%clk 0:00:20.5]} 28... Qf5 {[%clk 0:00:24.6]} 29. Qg2
{[%clk 0:00:17.4]} 29... Re8 {[%clk 0:00:17.1]} 30. Rf2 {[%clk 0:00:17.6]} 30...
Bf8 {[%clk 0:00:13.2]} 31. Re1 {[%clk 0:00:16.5]} 31... Rd8 {[%clk 0:00:13.8]}
32. Nb3 {[%clk 0:00:16.3]} 32... c5 {[%clk 0:00:10.1]} 33. Bxc5 {[%clk
0:00:15.6]} 33... Bxc5 {[%clk 0:00:10.5]} 34. Nxc5 {[%clk 0:00:16.5]} 34... d4
{[%clk 0:00:11.4]} 35. Qe4 {[%clk 0:00:14.8]} 35... Qxh3+ {[%clk 0:00:11.4]} 36.
Kg1 {[%clk 0:00:14.5]} 36... Qg3+ {[%clk 0:00:11.7]} 37. Qg2 {[%clk 0:00:14.6]}
37... Qg4 {[%clk 0:00:04.3]} 38. Qxg4 {[%clk 0:00:14.5]} 38... Bxg4 {[%clk
0:00:05.2]} 39. Nd3 {[%clk 0:00:10.3]} 39... Bf5 {[%clk 0:00:04.9]} 40. Rd1
{[%clk 0:00:10.5]} 40... Rdf8 {[%clk 0:00:04.6]} 41. Nc5 {[%clk 0:00:09]} 41...
Rd8 {[%clk 0:00:03.2]} 42. Rfd2 {[%clk 0:00:08.2]} 42... d3 {[%clk 0:00:03.8]}
43. Nxd3 {[%clk 0:00:08]} 43... Bxd3 {[%clk 0:00:03.8]} 44. Rxd3 {[%clk
0:00:07.8]} 44... Rxd3 {[%clk 0:00:04.7]} 45. Rxd3 {[%clk 0:00:08.4]} 45... Rxf4
{[%clk 0:00:05.6]} 46. Rd7 {[%clk 0:00:08.7]} 46... Re4 {[%clk 0:00:04.5]} 47.
Rxc7 {[%clk 0:00:08.6]} 47... Rxe5 {[%clk 0:00:05.2]} 48. g6 {[%clk 0:00:08.9]}
48... Rg5+ {[%clk 0:00:05.8]} 49. Kh2 {[%clk 0:00:09.3]} 49... Rxg6 {[%clk
0:00:06.7]} 50. b4 {[%clk 0:00:09.5]} 50... Kh7 {[%clk 0:00:07.2]} 51. a4 {[%clk
0:00:09.5]} 51... Rg4 {[%clk 0:00:07.5]} 52. Rc5 {[%clk 0:00:05.6]} 52... Kh6
{[%clk 0:00:05.4]} 53. Rc6+ {[%clk 0:00:02.7]} 53... g6 {[%clk 0:00:05.1]} 54.
Rxa6 {[%clk 0:00:02.4]} 54... Rxb4 {[%clk 0:00:05.5]} 55. a5 {[%clk 0:00:02.9]}
55... Rb2+ {[%clk 0:00:04.3]} 56. Kg3 {[%clk 0:00:02.8]} 56... Rb3+ {[%clk
0:00:03.5]} 57. Kg2 {[%clk 0:00:02.8]} 57... h4 {[%clk 0:00:03.4]} 58. Ra8
{[%clk 0:00:03.2]} 58... Ra3 {[%clk 0:00:03.5]} 59. a6 {[%clk 0:00:03.4]} 59...
g5 {[%clk 0:00:02.7]} 60. a7 {[%clk 0:00:03.3]} 60... Kg7 {[%clk 0:00:03.4]} 61.
Kh2 {[%clk 0:00:03.1]} 61... g4 {[%clk 0:00:04]} 62. Kg2 {[%clk 0:00:03.5]}
62... Ra2+ {[%clk 0:00:04.4]} 63. Kg1 {[%clk 0:00:04]} 63... h3 {[%clk
0:00:04.9]} 64. Rc8 {[%clk 0:00:02.1]} 64... Rxa7 {[%clk 0:00:02.7]} 65. Rc4
{[%clk 0:00:02.7]} 65... Ra1+ {[%clk 0:00:02.5]} 66. Kh2 {[%clk 0:00:02.7]}
66... Ra2+ {[%clk 0:00:03.4]} 67. Kh1 {[%clk 0:00:02.9]} 67... Rg2 {[%clk
0:00:02.7]} 68. Rc7+ {[%clk 0:00:03.1]} 68... Kf6 {[%clk 0:00:03.4]} 69. Rc6+
{[%clk 0:00:03.7]} 69... Kg5 {[%clk 0:00:04]} 70. Rc5+ {[%clk 0:00:04.2]} 70...
Kf4 {[%clk 0:00:04.5]} 71. Rc4+ {[%clk 0:00:04.6]} 71... Ke3 {[%clk 0:00:04.3]}
72. Rc3+ {[%clk 0:00:04.9]} 72... Kd4 {[%clk 0:00:05]} 73. Rc4+ {[%clk
0:00:05.2]} 73... Kd3 {[%clk 0:00:05.9]} 74. Rc3+ {[%clk 0:00:05.7]} 74... Ke4
{[%clk 0:00:03.6]} 75. Rc4+ {[%clk 0:00:06.2]} 75... Kf5 {[%clk 0:00:03.3]} 76.
Rc5+ {[%clk 0:00:06.6]} 76... Kf4 {[%clk 0:00:03.9]} 77. Rc4+ {[%clk 0:00:07]}
77... Kf3 {[%clk 0:00:04.7]} 78. Rc3+ {[%clk 0:00:07.5]} 78... Kf2 {[%clk
0:00:05.4]} 79. Rc2+ {[%clk 0:00:08.1]} 79... Kg3 {[%clk 0:00:06.2]} 80. Rc3+
{[%clk 0:00:07.9]} 80... Kf4 {[%clk 0:00:04.7]} 81. Rc4+ {[%clk 0:00:08.3]}
1/2-1/2